[Event "Titled Tuesday Blitz May 24 Early 2022"]
[White "Meunier-Pion, Jean"]
[Black "Turutin, Alexander"]
[WhiteFideId "20685327"]
[BlackFideId "4180623"]
[WhiteElo "2124"]
[BlackElo "2402"]
[Result "1-0"]
[Round "06"]
[TimeControl "180+1"]
[Date "2022.05.25"]
[WhiteClock "0:00:02"]
[BlackClock "0:00:02"]

1. e4 {[%clk 0:03:00]}  c6 {[%clk 0:02:54]} 2. d4 {[%clk 0:03:01]}  d5 {[%clk 0:02:55]} 3. e5 {[%clk 0:03:01]}  Bf5 {[%clk 0:02:53]} 4. Nf3 {[%clk 0:03:01]}  e6 {[%clk 0:02:53]} 5. Be2 {[%clk 0:03:01]}  Ne7 {[%clk 0:02:50]} 6. O-O {[%clk 0:03:01]}  Nd7 {[%clk 0:02:45]} 7. Nbd2 {[%clk 0:03:01]}  h6 {[%clk 0:02:37]} 8. Nb3 {[%clk 0:03:00]}  Bh7 {[%clk 0:02:35]} 9. a4 {[%clk 0:03:01]}  Ng6 {[%clk 0:02:04]} 10. Ne1 {[%clk 0:02:51]}  c5 {[%clk 0:01:55]} 11. c3 {[%clk 0:02:51]}  a6 {[%clk 0:01:45]} 12. f4 {[%clk 0:02:51]}  Be7 {[%clk 0:01:27]} 13. g3 {[%clk 0:02:40]}  O-O {[%clk 0:01:25]} 14. Be3 {[%clk 0:02:38]}  Rc8 {[%clk 0:01:20]} 15. Nf3 {[%clk 0:02:27]}  Qb6 {[%clk 0:01:14]} 16. a5 {[%clk 0:02:25]}  Qc7 {[%clk 0:01:14]} 17. dxc5 {[%clk 0:02:23]}  Nxc5 {[%clk 0:01:14]} 18. Nxc5 {[%clk 0:02:22]}  Bxc5 {[%clk 0:01:15]} 19. Nd4 {[%clk 0:02:22]}  Ne7 {[%clk 0:01:13]} 20. g4 {[%clk 0:02:12]}  Be4 {[%clk 0:01:10]} 21. Qd2 {[%clk 0:02:03]}  Nc6 {[%clk 0:01:01]} 22. Nb3 {[%clk 0:01:42]}  Bxe3+ {[%clk 0:00:48]} 23. Qxe3 {[%clk 0:01:43]}  f6 {[%clk 0:00:49]} 24. Nc5 {[%clk 0:01:35]}  Rce8 {[%clk 0:00:39]} 25. exf6 {[%clk 0:01:28]}  Rxf6 {[%clk 0:00:29]} 26. Nxe4 {[%clk 0:01:25]}  dxe4 {[%clk 0:00:30]} 27. Qxe4 {[%clk 0:01:26]}  Nxa5 {[%clk 0:00:29]} 28. Bd3 {[%clk 0:01:21]}  Nb3 {[%clk 0:00:24]} 29. Rad1 {[%clk 0:01:06]}  Kf8 {[%clk 0:00:25]} 30. g5 {[%clk 0:01:03]}  Rf7 {[%clk 0:00:21]} 31. Qh7 {[%clk 0:00:42]}  Qb6+ {[%clk 0:00:17]} 32. Kh1 {[%clk 0:00:40]}  Nc5 {[%clk 0:00:17]} 33. Bg6 {[%clk 0:00:33]}  Qc6+ {[%clk 0:00:18]} 34. Kg1 {[%clk 0:00:33]}  Qb6 {[%clk 0:00:15]} 35. gxh6 {[%clk 0:00:29]}  Ne4+ {[%clk 0:00:07]} 36. Kh1 {[%clk 0:00:26]}  Nf6 {[%clk 0:00:07]} 37. hxg7+ {[%clk 0:00:20]}  Ke7 {[%clk 0:00:07]} 38. Qh4 {[%clk 0:00:15]}  Qc6+ {[%clk 0:00:08]} 39. Kg1 {[%clk 0:00:13]}  Rg8 {[%clk 0:00:08]} 40. Rd3 {[%clk 0:00:09]}  Rgxg7 {[%clk 0:00:08]} 41. Rg3 {[%clk 0:00:10]}  Rf8 {[%clk 0:00:08]} 42. Bh7 {[%clk 0:00:06]}  Rxh7 {[%clk 0:00:06]} 43. Qg5 {[%clk 0:00:04]}  Rg8 {[%clk 0:00:07]} 44. Qe5 {[%clk 0:00:04]}  Rxg3+ {[%clk 0:00:07]} 45. hxg3 {[%clk 0:00:05]}  Qh1+ {[%clk 0:00:06]} 46. Kf2 {[%clk 0:00:05]}  Rh2+ {[%clk 0:00:06]} 47. Ke1 {[%clk 0:00:06]}  Qe4+ {[%clk 0:00:06]} 48. Qxe4 {[%clk 0:00:03]}  Nxe4 {[%clk 0:00:07]} 49. Rg1 {[%clk 0:00:03]}  Nc5 {[%clk 0:00:07]} 50. Kd1 {[%clk 0:00:03]}  Nd3 {[%clk 0:00:07]} 51. b4 {[%clk 0:00:03]}  Rf2 {[%clk 0:00:07]} 52. Rh1 {[%clk 0:00:02]}  Nb2+ {[%clk 0:00:07]} 53. Kc1 {[%clk 0:00:02]}  Nd3+ {[%clk 0:00:08]} 54. Kd1 {[%clk 0:00:03]}  Rg2 {[%clk 0:00:09]} 55. Rh7+ {[%clk 0:00:03]}  Kd6 {[%clk 0:00:09]} 56. Rxb7 {[%clk 0:00:04]}  Rxg3 {[%clk 0:00:09]} 57. Rb6+ {[%clk 0:00:04]}  Kd5 {[%clk 0:00:09]} 58. Rxa6 {[%clk 0:00:05]}  Nxf4 {[%clk 0:00:10]} 59. Kd2 {[%clk 0:00:05]}  Rd3+ {[%clk 0:00:09]} 60. Kc2 {[%clk 0:00:06]}  Rf3 {[%clk 0:00:10]} 61. Ra5+ {[%clk 0:00:06]}  Ke4 {[%clk 0:00:09]} 62. b5 {[%clk 0:00:06]}  e5 {[%clk 0:00:08]} 63. b6 {[%clk 0:00:06]}  Rf2+ {[%clk 0:00:06]} 64. Kb3 {[%clk 0:00:06]}  Ne6 {[%clk 0:00:06]} 65. b7 {[%clk 0:00:04]}  Rf1 {[%clk 0:00:05]} 66. Kc4 {[%clk 0:00:02]}  Rf8 {[%clk 0:00:02]} 67. Ra8 {[%clk 0:00:02]} 1-0


[Site "https://www.chess.com"]

[Event "Titled Tuesday Blitz May 24 Early 2022"]
[White "Mikhalsky, Vladimir"]
[Black "Avinash, Ramesh"]
[WhiteFideId "14144352"]
[BlackFideId "45018340"]
[WhiteElo "2301"]
[BlackElo "1875"]
[Result "0-1"]
[Round "06"]
[TimeControl "180+1"]
[Date "2022.05.25"]
[WhiteClock "0:00:05"]
[BlackClock "0:00:11"]

1. c4 {[%clk 0:02:58]}  Nf6 {[%clk 0:02:59]} 2. Nc3 {[%clk 0:02:57]}  c5 {[%clk 0:02:59]} 3. Nf3 {[%clk 0:02:57]}  Nc6 {[%clk 0:02:59]} 4. d4 {[%clk 0:02:57]}  cxd4 {[%clk 0:02:58]} 5. Nxd4 {[%clk 0:02:57]}  g6 {[%clk 0:02:59]} 6. e4 {[%clk 0:02:56]}  Bg7 {[%clk 0:02:58]} 7. Nc2 {[%clk 0:02:56]}  O-O {[%clk 0:02:58]} 8. Be2 {[%clk 0:02:55]}  d6 {[%clk 0:02:58]} 9. Be3 {[%clk 0:02:55]}  Be6 {[%clk 0:02:52]} 10. f3 {[%clk 0:02:35]}  Rc8 {[%clk 0:02:50]} 11. Qd2 {[%clk 0:02:35]}  Ne5 {[%clk 0:02:22]} 12. b3 {[%clk 0:02:33]}  Qa5 {[%clk 0:02:21]} 13. Nd4 {[%clk 0:02:22]}  Nfd7 {[%clk 0:02:17]} 14. O-O {[%clk 0:02:13]}  Nc6 {[%clk 0:02:15]} 15. Rfd1 {[%clk 0:02:03]}  Nxd4 {[%clk 0:02:13]} 16. Bxd4 {[%clk 0:02:02]}  Bxd4+ {[%clk 0:02:14]} 17. Qxd4 {[%clk 0:02:03]}  Qc5 {[%clk 0:02:14]} 18. f4 {[%clk 0:01:49]}  a5 {[%clk 0:02:00]} 19. Bf3 {[%clk 0:01:47]}  Qxd4+ {[%clk 0:01:50]} 20. Rxd4 {[%clk 0:01:46]}  Nc5 {[%clk 0:01:49]} 21. g4 {[%clk 0:01:40]}  Rfe8 {[%clk 0:01:42]} 22. Re1 {[%clk 0:01:10]}  Bd7 {[%clk 0:01:40]} 23. e5 {[%clk 0:01:06]}  Ne6 {[%clk 0:01:13]} 24. Rde4 {[%clk 0:01:06]}  Bc6 {[%clk 0:01:10]} 25. Nd5 {[%clk 0:01:06]}  Nc5 {[%clk 0:00:52]} 26. R4e3 {[%clk 0:00:49]}  Bxd5 {[%clk 0:00:52]} 27. Bxd5 {[%clk 0:00:48]}  dxe5 {[%clk 0:00:47]} 28. fxe5 {[%clk 0:00:25]}  e6 {[%clk 0:00:47]} 29. Bg2 {[%clk 0:00:21]}  Red8 {[%clk 0:00:46]} 30. Rf1 {[%clk 0:00:18]}  Rd4 {[%clk 0:00:39]} 31. Ref3 {[%clk 0:00:17]}  Rc7 {[%clk 0:00:39]} 32. h3 {[%clk 0:00:17]}  Rcd7 {[%clk 0:00:32]} 33. R3f2 {[%clk 0:00:16]}  Rd2 {[%clk 0:00:26]} 34. Rxd2 {[%clk 0:00:15]}  Rxd2 {[%clk 0:00:25]} 35. Rf2 {[%clk 0:00:16]}  Rd4 {[%clk 0:00:25]} 36. Re2 {[%clk 0:00:16]}  Kf8 {[%clk 0:00:23]} 37. Kh2 {[%clk 0:00:16]}  Ke7 {[%clk 0:00:23]} 38. Kg3 {[%clk 0:00:16]}  Rd3+ {[%clk 0:00:22]} 39. Kh2 {[%clk 0:00:15]}  b6 {[%clk 0:00:22]} 40. Rf2 {[%clk 0:00:15]}  Na6 {[%clk 0:00:21]} 41. Re2 {[%clk 0:00:14]}  Nb4 {[%clk 0:00:21]} 42. a3 {[%clk 0:00:12]}  Na6 {[%clk 0:00:21]} 43. b4 {[%clk 0:00:12]}  axb4 {[%clk 0:00:20]} 44. axb4 {[%clk 0:00:12]}  Rb3 {[%clk 0:00:20]} 45. Ra2 {[%clk 0:00:11]}  Nxb4 {[%clk 0:00:19]} 46. Ra7+ {[%clk 0:00:11]}  Kf8 {[%clk 0:00:19]} 47. Ra8+ {[%clk 0:00:11]}  Kg7 {[%clk 0:00:19]} 48. Rb8 {[%clk 0:00:11]}  Nd3 {[%clk 0:00:19]} 49. Rb7 {[%clk 0:00:10]}  Rb2 {[%clk 0:00:15]} 50. Kg3 {[%clk 0:00:10]}  g5 {[%clk 0:00:11]} 51. Be4 {[%clk 0:00:10]}  Nxe5 {[%clk 0:00:10]} 52. c5 {[%clk 0:00:10]}  Re2 {[%clk 0:00:09]} 53. Bf3 {[%clk 0:00:08]}  Re3 {[%clk 0:00:09]} 54. cxb6 {[%clk 0:00:06]}  Rxf3+ {[%clk 0:00:09]} 55. Kg2 {[%clk 0:00:06]}  Rb3 {[%clk 0:00:10]} 56. Rb8 {[%clk 0:00:06]}  Nd7 {[%clk 0:00:10]} 57. Rd8 {[%clk 0:00:06]}  Nxb6 {[%clk 0:00:10]} 58. Rb8 {[%clk 0:00:06]}  Rb4 {[%clk 0:00:09]} 59. Kg3 {[%clk 0:00:06]}  Nd5 {[%clk 0:00:10]} 60. Rd8 {[%clk 0:00:06]}  Rb3+ {[%clk 0:00:10]} 61. Kg2 {[%clk 0:00:06]}  Nf4+ {[%clk 0:00:11]} 62. Kf2 {[%clk 0:00:05]}  Rxh3 {[%clk 0:00:11]} 0-1


[Site "https://www.chess.com"]

[Event "Titled Tuesday Blitz May 24 Early 2022"]
[White "Namitbir Singh Walia"]
[Black "Stepanencu, Nicodim-Cosmin"]
[WhiteFideId "35071068"]
[BlackFideId "1256220"]
[WhiteElo "1565"]
[BlackElo "1945"]
[Result "0-1"]
[Round "06"]
[TimeControl "180+1"]
[Date "2022.05.25"]
[WhiteClock "0:00:09"]
[BlackClock "0:00:24"]

1. d4 {[%clk 0:03:00]}  g6 {[%clk 0:02:53]} 2. c4 {[%clk 0:02:58]}  Bg7 {[%clk 0:02:53]} 3. Nf3 {[%clk 0:02:57]}  d6 {[%clk 0:02:54]} 4. g3 {[%clk 0:02:58]}  Nc6 {[%clk 0:02:48]} 5. h3 {[%clk 0:02:47]}  e5 {[%clk 0:02:46]} 6. d5 {[%clk 0:02:46]}  Nce7 {[%clk 0:02:46]} 7. e4 {[%clk 0:02:44]}  f5 {[%clk 0:02:44]} 8. Nc3 {[%clk 0:02:01]}  Nf6 {[%clk 0:02:43]} 9. Bg2 {[%clk 0:01:52]}  h6 {[%clk 0:02:36]} 10. Be3 {[%clk 0:01:52]}  O-O {[%clk 0:02:26]} 11. Qc2 {[%clk 0:01:50]}  fxe4 {[%clk 0:02:21]} 12. Nd2 {[%clk 0:01:48]}  Nf5 {[%clk 0:02:22]} 13. Ndxe4 {[%clk 0:01:35]}  Nxe3 {[%clk 0:02:05]} 14. fxe3 {[%clk 0:01:35]}  Bf5 {[%clk 0:01:47]} 15. O-O-O {[%clk 0:01:25]}  g5 {[%clk 0:01:42]} 16. Rdf1 {[%clk 0:01:16]}  Qd7 {[%clk 0:01:40]} 17. h4 {[%clk 0:01:06]}  g4 {[%clk 0:01:25]} 18. Qe2 {[%clk 0:00:41]}  Nh5 {[%clk 0:01:10]} 19. Rf2 {[%clk 0:00:27]}  Rf7 {[%clk 0:01:01]} 20. Rhf1 {[%clk 0:00:26]}  Raf8 {[%clk 0:01:01]} 21. Kd2 {[%clk 0:00:11]}  a6 {[%clk 0:00:58]} 22. a4 {[%clk 0:00:11]}  c6 {[%clk 0:00:57]} 23. dxc6 {[%clk 0:00:10]}  bxc6 {[%clk 0:00:57]} 24. Kc1 {[%clk 0:00:10]}  d5 {[%clk 0:00:56]} 25. Rd1 {[%clk 0:00:10]}  Bxe4 {[%clk 0:00:49]} 26. Rxf7 {[%clk 0:00:10]}  Qxf7 {[%clk 0:00:49]} 27. Bxe4 {[%clk 0:00:10]}  dxe4 {[%clk 0:00:49]} 28. Qxg4 {[%clk 0:00:11]}  Qf3 {[%clk 0:00:45]} 29. Qxe4 {[%clk 0:00:11]}  Nxg3 {[%clk 0:00:41]} 30. Qg6 {[%clk 0:00:09]}  Qxe3+ {[%clk 0:00:24]} 31. Kb1 {[%clk 0:00:10]}  Qf3 {[%clk 0:00:23]} 32. Rd7 {[%clk 0:00:09]}  Qf5+ {[%clk 0:00:23]} 33. Qxf5 {[%clk 0:00:08]}  Rxf5 {[%clk 0:00:23]} 34. Ra7 {[%clk 0:00:09]}  e4 {[%clk 0:00:24]} 35. Rxa6 {[%clk 0:00:09]}  Bxc3 {[%clk 0:00:23]} 36. bxc3 {[%clk 0:00:09]}  e3 {[%clk 0:00:24]} 0-1


[Site "https://www.chess.com"]

[Event "Titled Tuesday Blitz May 24 Early 2022"]
[White "Nguyen, Quoc Hy"]
[Black "Melikhov, Evgeny V."]
[WhiteFideId "12410853"]
[BlackFideId "4122046"]
[WhiteElo "1938"]
[BlackElo "1931"]
[Result "1-0"]
[Round "06"]
[TimeControl "180+1"]
[Date "2022.05.25"]
[WhiteClock "0:01:17"]
[BlackClock "0:00:40"]

1. d4 {[%clk 0:03:00]}  Nf6 {[%clk 0:02:59]} 2. c4 {[%clk 0:03:01]}  e6 {[%clk 0:02:59]} 3. Nc3 {[%clk 0:03:02]}  Bb4 {[%clk 0:02:59]} 4. Qc2 {[%clk 0:02:58]}  c5 {[%clk 0:02:59]} 5. dxc5 {[%clk 0:02:57]}  Na6 {[%clk 0:02:59]} 6. a3 {[%clk 0:02:56]}  Bxc3+ {[%clk 0:03:00]} 7. Qxc3 {[%clk 0:02:57]}  Nxc5 {[%clk 0:03:00]} 8. b4 {[%clk 0:02:58]}  Nce4 {[%clk 0:03:00]} 9. Qb2 {[%clk 0:02:57]}  d5 {[%clk 0:03:00]} 10. f3 {[%clk 0:02:56]}  Nd6 {[%clk 0:02:58]} 11. c5 {[%clk 0:02:57]}  Nc4 {[%clk 0:02:59]} 12. Qc2 {[%clk 0:02:57]}  a5 {[%clk 0:02:47]} 13. e4 {[%clk 0:02:43]}  axb4 {[%clk 0:02:41]} 14. Bxc4 {[%clk 0:02:38]}  dxc4 {[%clk 0:02:41]} 15. Qxc4 {[%clk 0:02:38]}  bxa3 {[%clk 0:02:39]} 16. Ne2 {[%clk 0:02:33]}  Qa5+ {[%clk 0:02:22]} 17. Bd2 {[%clk 0:02:30]}  Qa4 {[%clk 0:02:20]} 18. Qxa4+ {[%clk 0:02:25]}  Rxa4 {[%clk 0:02:20]} 19. Nc3 {[%clk 0:02:26]}  Rc4 {[%clk 0:02:17]} 20. Nb5 {[%clk 0:02:11]}  Rxc5 {[%clk 0:02:14]} 21. Nd6+ {[%clk 0:02:09]}  Kd7 {[%clk 0:02:01]} 22. Nxf7 {[%clk 0:02:05]}  Re8 {[%clk 0:01:43]} 23. Rxa3 {[%clk 0:02:01]}  h6 {[%clk 0:01:30]} 24. Ke2 {[%clk 0:01:42]}  e5 {[%clk 0:01:28]} 25. Rd3+ {[%clk 0:01:36]}  Ke6 {[%clk 0:01:25]} 26. Nd6 {[%clk 0:01:37]}  Rd8 {[%clk 0:01:23]} 27. Rd1 {[%clk 0:01:33]}  Rxd6 {[%clk 0:01:06]} 28. Rxd6+ {[%clk 0:01:31]}  Kxd6 {[%clk 0:01:06]} 29. Bb4+ {[%clk 0:01:31]}  Kc6 {[%clk 0:00:54]} 30. Bxc5 {[%clk 0:01:31]}  Nd7 {[%clk 0:00:51]} 31. Be7 {[%clk 0:01:26]}  b6 {[%clk 0:00:49]} 32. Rd6+ {[%clk 0:01:23]}  Kc7 {[%clk 0:00:49]} 33. Rg6 {[%clk 0:01:24]}  Ba6+ {[%clk 0:00:48]} 34. Ke3 {[%clk 0:01:22]}  Bc4 {[%clk 0:00:46]} 35. Rxg7 {[%clk 0:01:22]}  b5 {[%clk 0:00:46]} 36. Rh7 {[%clk 0:01:19]}  Kc6 {[%clk 0:00:40]} 37. Rxh6+ {[%clk 0:01:19]}  Kc7 {[%clk 0:00:40]} 38. Bd6+ {[%clk 0:01:18]}  Kc6 {[%clk 0:00:40]} 39. Bxe5+ {[%clk 0:01:18]}  Kc5 {[%clk 0:00:40]} 40. Bd6+ {[%clk 0:01:17]} 1-0


[Site "https://www.chess.com"]

[Event "Titled Tuesday Blitz May 24 Early 2022"]
[White "Ozkan, Ervin"]
[Black "Garv Gaur"]
[WhiteFideId "6306004"]
[BlackFideId "45030839"]
[WhiteElo "2226"]
[BlackElo "1950"]
[Result "1-0"]
[Round "06"]
[TimeControl "180+1"]
[Date "2022.05.25"]
[WhiteClock "0:00:12"]
[BlackClock "0:00:15"]

1. d4 {[%clk 0:03:00]}  d5 {[%clk 0:03:00]} 2. Bf4 {[%clk 0:03:00]}  Nf6 {[%clk 0:02:59]} 3. e3 {[%clk 0:03:00]}  c5 {[%clk 0:02:59]} 4. Nf3 {[%clk 0:03:01]}  Nc6 {[%clk 0:02:59]} 5. c3 {[%clk 0:02:59]}  Qb6 {[%clk 0:02:59]} 6. Qc2 {[%clk 0:02:59]}  g6 {[%clk 0:02:48]} 7. Nbd2 {[%clk 0:02:58]}  Bf5 {[%clk 0:02:46]} 8. dxc5 {[%clk 0:02:56]}  Bxc2 {[%clk 0:02:32]} 9. cxb6 {[%clk 0:02:56]}  axb6 {[%clk 0:02:33]} 10. Bb5 {[%clk 0:02:54]}  Bf5 {[%clk 0:02:29]} 11. Bc7 {[%clk 0:02:46]}  Nd7 {[%clk 0:02:21]} 12. Nd4 {[%clk 0:02:45]}  Rc8 {[%clk 0:02:05]} 13. Bg3 {[%clk 0:02:34]}  Bg7 {[%clk 0:02:01]} 14. Nxc6 {[%clk 0:02:12]}  bxc6 {[%clk 0:02:00]} 15. Ba6 {[%clk 0:02:12]}  Rd8 {[%clk 0:01:52]} 16. Bb7 {[%clk 0:02:12]}  O-O {[%clk 0:01:38]} 17. Bxc6 {[%clk 0:02:11]}  Nc5 {[%clk 0:01:38]} 18. O-O {[%clk 0:01:49]}  e5 {[%clk 0:01:35]} 19. Rfd1 {[%clk 0:01:33]}  Be6 {[%clk 0:01:26]} 20. b4 {[%clk 0:01:11]}  Nd3 {[%clk 0:01:21]} 21. Nf3 {[%clk 0:00:58]}  Nb2 {[%clk 0:01:18]} 22. Rdb1 {[%clk 0:00:54]}  Nc4 {[%clk 0:01:17]} 23. Bb5 {[%clk 0:00:52]}  Na3 {[%clk 0:01:12]} 24. Bc6 {[%clk 0:00:47]}  Nxb1 {[%clk 0:00:54]} 25. Rxb1 {[%clk 0:00:48]}  f6 {[%clk 0:00:54]} 26. a4 {[%clk 0:00:46]}  g5 {[%clk 0:00:51]} 27. h3 {[%clk 0:00:45]}  h5 {[%clk 0:00:50]} 28. Nd2 {[%clk 0:00:32]}  g4 {[%clk 0:00:29]} 29. hxg4 {[%clk 0:00:32]}  hxg4 {[%clk 0:00:30]} 30. f4 {[%clk 0:00:20]}  Rc8 {[%clk 0:00:19]} 31. b5 {[%clk 0:00:19]}  Rfd8 {[%clk 0:00:15]} 32. Nb3 {[%clk 0:00:14]}  d4 {[%clk 0:00:13]} 33. cxd4 {[%clk 0:00:13]}  Bxb3 {[%clk 0:00:13]} 34. Rxb3 {[%clk 0:00:13]}  exd4 {[%clk 0:00:14]} 35. exd4 {[%clk 0:00:13]}  Rxd4 {[%clk 0:00:14]} 36. f5 {[%clk 0:00:13]}  Rxa4 {[%clk 0:00:13]} 37. Rc3 {[%clk 0:00:11]}  Kh7 {[%clk 0:00:13]} 38. Bd6 {[%clk 0:00:08]}  Bf8 {[%clk 0:00:12]} 39. Bxf8 {[%clk 0:00:06]}  Rxf8 {[%clk 0:00:13]} 40. Rd3 {[%clk 0:00:07]}  Rf7 {[%clk 0:00:13]} 41. Kh2 {[%clk 0:00:07]}  Rf4 {[%clk 0:00:12]} 42. Kg3 {[%clk 0:00:04]}  Rxf5 {[%clk 0:00:12]} 43. Be4 {[%clk 0:00:04]}  Kh6 {[%clk 0:00:08]} 44. Rd5 {[%clk 0:00:05]}  Rxd5 {[%clk 0:00:08]} 45. Bxd5 {[%clk 0:00:06]}  f5 {[%clk 0:00:08]} 46. Kf4 {[%clk 0:00:06]}  Kg6 {[%clk 0:00:09]} 47. Bxf7+ {[%clk 0:00:06]}  Kxf7 {[%clk 0:00:09]} 48. Kxf5 {[%clk 0:00:07]}  Ke7 {[%clk 0:00:08]} 49. Kxg4 {[%clk 0:00:07]}  Kd6 {[%clk 0:00:09]} 50. Kf4 {[%clk 0:00:07]}  Kc5 {[%clk 0:00:10]} 51. g4 {[%clk 0:00:08]}  Kxb5 {[%clk 0:00:10]} 52. g5 {[%clk 0:00:09]}  Kc4 {[%clk 0:00:11]} 53. g6 {[%clk 0:00:10]}  b5 {[%clk 0:00:12]} 54. g7 {[%clk 0:00:11]}  b4 {[%clk 0:00:13]} 55. g8=Q+ {[%clk 0:00:12]}  Kc3 {[%clk 0:00:13]} 56. Qa2 {[%clk 0:00:11]}  b3 {[%clk 0:00:12]} 57. Qb1 {[%clk 0:00:11]}  b2 {[%clk 0:00:13]} 58. Ke3 {[%clk 0:00:12]}  Kb3 {[%clk 0:00:13]} 59. Kd3 {[%clk 0:00:12]}  Ka3 {[%clk 0:00:13]} 60. Kc3 {[%clk 0:00:12]}  Ka4 {[%clk 0:00:14]} 61. Qxb2 {[%clk 0:00:12]}  Ka5 {[%clk 0:00:15]} 62. Qb7 {[%clk 0:00:12]}  Ka4 {[%clk 0:00:15]} 63. Qb4# {[%clk 0:00:12]} 1-0


[Site "https://www.chess.com"]

[Event "Titled Tuesday Blitz May 24 Early 2022"]
[White "Pakleza, Zbigniew"]
[Black "Hakemi, Arman"]
[WhiteFideId "1119290"]
[BlackFideId "22520805"]
[WhiteElo "2467"]
[BlackElo "2115"]
[Result "1/2-1/2"]
[Round "06"]
[TimeControl "180+1"]
[Date "2022.05.24"]
[WhiteClock "0:00:29"]
[BlackClock "0:00:15"]

1. d4 {[%clk 0:03:00]}  Nf6 {[%clk 0:03:00]} 2. Nf3 {[%clk 0:03:01]}  d5 {[%clk 0:02:58]} 3. Bf4 {[%clk 0:03:01]}  e6 {[%clk 0:02:59]} 4. e3 {[%clk 0:03:01]}  c5 {[%clk 0:02:59]} 5. c3 {[%clk 0:03:01]}  Nc6 {[%clk 0:03:00]} 6. Nbd2 {[%clk 0:03:01]}  cxd4 {[%clk 0:02:59]} 7. cxd4 {[%clk 0:03:01]}  Qb6 {[%clk 0:02:58]} 8. Qb3 {[%clk 0:03:01]}  Qxb3 {[%clk 0:02:56]} 9. Nxb3 {[%clk 0:03:01]}  Bb4+ {[%clk 0:02:57]} 10. Nfd2 {[%clk 0:02:46]}  Ne4 {[%clk 0:02:54]} 11. a3 {[%clk 0:02:34]}  Nxd2 {[%clk 0:02:37]} 12. Nxd2 {[%clk 0:02:35]}  Bxd2+ {[%clk 0:02:37]} 13. Kxd2 {[%clk 0:02:35]}  Na5 {[%clk 0:02:38]} 14. Rb1 {[%clk 0:02:02]}  Bd7 {[%clk 0:02:35]} 15. b3 {[%clk 0:01:29]}  Ke7 {[%clk 0:02:20]} 16. Bc7 {[%clk 0:01:17]}  b6 {[%clk 0:02:19]} 17. Ba6 {[%clk 0:01:17]}  Bc8 {[%clk 0:01:37]} 18. Bd3 {[%clk 0:01:17]}  Bb7 {[%clk 0:01:37]} 19. Rhc1 {[%clk 0:01:14]}  Rac8 {[%clk 0:01:36]} 20. Rc3 {[%clk 0:00:53]}  Kd7 {[%clk 0:01:32]} 21. Bb5+ {[%clk 0:00:46]}  Bc6 {[%clk 0:01:25]} 22. Bxc6+ {[%clk 0:00:46]}  Nxc6 {[%clk 0:01:23]} 23. Bg3 {[%clk 0:00:45]}  Na5 {[%clk 0:01:23]} 24. Rbc1 {[%clk 0:00:44]}  Rxc3 {[%clk 0:01:21]} 25. Rxc3 {[%clk 0:00:45]}  Rc8 {[%clk 0:01:21]} 26. Rxc8 {[%clk 0:00:44]}  Kxc8 {[%clk 0:01:22]} 27. Kc3 {[%clk 0:00:44]}  Kd7 {[%clk 0:01:21]} 28. f3 {[%clk 0:00:41]}  f5 {[%clk 0:01:14]} 29. Be5 {[%clk 0:00:39]}  g6 {[%clk 0:01:14]} 30. Bf4 {[%clk 0:00:39]}  Nc6 {[%clk 0:01:11]} 31. h3 {[%clk 0:00:37]}  a6 {[%clk 0:01:07]} 32. Bg3 {[%clk 0:00:35]}  h5 {[%clk 0:00:58]} 33. h4 {[%clk 0:00:33]}  Nd8 {[%clk 0:00:57]} 34. Bf4 {[%clk 0:00:32]}  Nc6 {[%clk 0:00:57]} 35. Bg3 {[%clk 0:00:32]}  Na7 {[%clk 0:00:57]} 36. Bf4 {[%clk 0:00:32]}  Nb5+ {[%clk 0:00:58]} 37. Kb2 {[%clk 0:00:33]}  Kc6 {[%clk 0:00:57]} 38. a4 {[%clk 0:00:32]}  Na7 {[%clk 0:00:57]} 39. Kc3 {[%clk 0:00:32]}  Kd7 {[%clk 0:00:58]} 40. Bg3 {[%clk 0:00:31]}  Nc6 {[%clk 0:00:58]} 41. Bf4 {[%clk 0:00:32]}  Nd8 {[%clk 0:00:40]} 42. Bg3 {[%clk 0:00:31]}  Kc6 {[%clk 0:00:41]} 43. Bf4 {[%clk 0:00:30]}  Nf7 {[%clk 0:00:41]} 44. Kb4 {[%clk 0:00:29]}  Nd8 {[%clk 0:00:36]} 45. Kc3 {[%clk 0:00:29]}  Kd7 {[%clk 0:00:34]} 46. Kb4 {[%clk 0:00:29]}  Nc6+ {[%clk 0:00:29]} 47. Kc3 {[%clk 0:00:29]}  Kc8 {[%clk 0:00:26]} 48. Bg3 {[%clk 0:00:29]}  Kd7 {[%clk 0:00:15]} 49. Bf4 {[%clk 0:00:29]} 1/2-1/2


[Site "https://www.chess.com"]

[Event "Titled Tuesday Blitz May 24 Early 2022"]
[White "Pham, Le Thao Nguyen"]
[Black "Kosteniuk, Alexandra"]
[WhiteFideId "12401226"]
[BlackFideId "4128125"]
[WhiteElo "2271"]
[BlackElo "2469"]
[Result "1-0"]
[Round "06"]
[TimeControl "180+1"]
[Date "2022.05.25"]
[WhiteClock "0:00:07"]
[BlackClock "0:00:03"]

1. Nf3 {[%clk 0:02:59]}  Nf6 {[%clk 0:02:59]} 2. g3 {[%clk 0:02:57]}  d5 {[%clk 0:02:57]} 3. Bg2 {[%clk 0:02:57]}  c5 {[%clk 0:02:57]} 4. O-O {[%clk 0:02:58]}  Nc6 {[%clk 0:02:57]} 5. d4 {[%clk 0:02:56]}  cxd4 {[%clk 0:02:58]} 6. Nxd4 {[%clk 0:02:57]}  e5 {[%clk 0:02:58]} 7. Nxc6 {[%clk 0:02:56]}  bxc6 {[%clk 0:02:59]} 8. c4 {[%clk 0:02:56]}  Be6 {[%clk 0:02:54]} 9. Qc2 {[%clk 0:02:47]}  Be7 {[%clk 0:02:48]} 10. h3 {[%clk 0:02:25]}  O-O {[%clk 0:02:46]} 11. Nd2 {[%clk 0:02:07]}  Rc8 {[%clk 0:02:44]} 12. Kh2 {[%clk 0:02:06]}  Qd6 {[%clk 0:02:34]} 13. b3 {[%clk 0:02:02]}  h5 {[%clk 0:02:32]} 14. Nf3 {[%clk 0:01:56]}  e4 {[%clk 0:02:32]} 15. Bf4 {[%clk 0:01:55]}  Qd8 {[%clk 0:02:20]} 16. Nd4 {[%clk 0:01:45]}  Nd7 {[%clk 0:02:14]} 17. Rad1 {[%clk 0:01:38]}  Qb6 {[%clk 0:02:00]} 18. Nxe6 {[%clk 0:01:33]}  fxe6 {[%clk 0:02:01]} 19. Bxe4 {[%clk 0:01:32]}  Rxf4 {[%clk 0:01:56]} 20. gxf4 {[%clk 0:01:19]}  Nf6 {[%clk 0:01:57]} 21. Bg6 {[%clk 0:01:18]}  Qb8 {[%clk 0:01:55]} 22. e3 {[%clk 0:01:17]}  Bd6 {[%clk 0:01:53]} 23. Rg1 {[%clk 0:01:09]}  Rf8 {[%clk 0:01:49]} 24. Kh1 {[%clk 0:00:54]}  Qb7 {[%clk 0:01:41]} 25. Rg5 {[%clk 0:00:33]}  h4 {[%clk 0:01:14]} 26. Rdg1 {[%clk 0:00:32]}  c5 {[%clk 0:01:09]} 27. R1g2 {[%clk 0:00:31]}  d4 {[%clk 0:01:06]} 28. Bh5 {[%clk 0:00:24]}  Nxh5 {[%clk 0:00:48]} 29. Rxh5 {[%clk 0:00:23]}  Qf3 {[%clk 0:00:33]} 30. Qh7+ {[%clk 0:00:16]}  Kf7 {[%clk 0:00:34]} 31. Qxg7+ {[%clk 0:00:16]}  Ke8 {[%clk 0:00:34]} 32. Rh7 {[%clk 0:00:15]}  Qc6 {[%clk 0:00:13]} 33. Kh2 {[%clk 0:00:13]}  dxe3 {[%clk 0:00:13]} 34. fxe3 {[%clk 0:00:14]}  Kd8 {[%clk 0:00:12]} 35. Qxa7 {[%clk 0:00:11]}  Bc7 {[%clk 0:00:11]} 36. Rd2+ {[%clk 0:00:09]}  Kc8 {[%clk 0:00:11]} 37. Rdd7 {[%clk 0:00:09]}  Qxd7 {[%clk 0:00:09]} 38. Rxd7 {[%clk 0:00:08]}  Kxd7 {[%clk 0:00:10]} 39. Qxc5 {[%clk 0:00:08]}  Rf5 {[%clk 0:00:08]} 40. Qd4+ {[%clk 0:00:08]}  Ke7 {[%clk 0:00:09]} 41. a4 {[%clk 0:00:08]}  Bd6 {[%clk 0:00:08]} 42. a5 {[%clk 0:00:06]}  e5 {[%clk 0:00:08]} 43. Qe4 {[%clk 0:00:06]}  Kf6 {[%clk 0:00:08]} 44. c5 {[%clk 0:00:05]}  Be7 {[%clk 0:00:04]} 45. b4 {[%clk 0:00:03]}  exf4 {[%clk 0:00:04]} 46. exf4 {[%clk 0:00:04]}  Bf8 {[%clk 0:00:02]} 47. a6 {[%clk 0:00:03]}  Bh6 {[%clk 0:00:03]} 48. Qc6+ {[%clk 0:00:04]}  Kg7 {[%clk 0:00:03]} 49. a7 {[%clk 0:00:04]}  Bxf4+ {[%clk 0:00:02]} 50. Kh1 {[%clk 0:00:05]}  Bg3 {[%clk 0:00:02]} 51. a8=Q {[%clk 0:00:05]}  Rf1+ {[%clk 0:00:02]} 52. Kg2 {[%clk 0:00:06]}  Rf2+ {[%clk 0:00:03]} 53. Kg1 {[%clk 0:00:07]} 1-0


[Site "https://www.chess.com"]